[Event "Titled Tuesday Blitz March 07 Late 2023"]
[White "Uzcategui Rodriguez, Alejandro"]
[Black "Zirkelbach, Maj"]
[WhiteFideId "3903400"]
[BlackFideId "14613395"]
[WhiteElo "2249"]
[BlackElo "2138"]
[Result "0-1"]
[Round "02"]
[TimeControl "180+2"]
[Date "2023.03.07"]
[WhiteClock "0:00:04"]
[BlackClock "0:00:28"]

1. e4 {[%clk 0:02:33]}  e5 {[%clk 0:02:59]} 2. Nf3 {[%clk 0:02:33]}  Nc6 {[%clk 0:02:59]} 3. d4 {[%clk 0:02:33]}  exd4 {[%clk 0:02:59]} 4. Nxd4 {[%clk 0:02:33]}  Nf6 {[%clk 0:02:54]} 5. Nxc6 {[%clk 0:02:29]}  bxc6 {[%clk 0:02:54]} 6. e5 {[%clk 0:02:26]}  Qe7 {[%clk 0:02:54]} 7. Qe2 {[%clk 0:02:26]}  Nd5 {[%clk 0:02:53]} 8. c4 {[%clk 0:02:22]}  Ba6 {[%clk 0:02:53]} 9. Nd2 {[%clk 0:02:08]}  g6 {[%clk 0:02:52]} 10. Ne4 {[%clk 0:01:46]}  Bg7 {[%clk 0:02:35]} 11. f4 {[%clk 0:01:08]}  d6 {[%clk 0:02:04]} 12. exd6 {[%clk 0:01:01]}  cxd6 {[%clk 0:01:26]} 13. Nxd6+ {[%clk 0:00:59]}  Kf8 {[%clk 0:01:26]} 14. Qxe7+ {[%clk 0:00:51]}  Nxe7 {[%clk 0:01:27]} 15. c5 {[%clk 0:00:40]}  Bxf1 {[%clk 0:01:26]} 16. Kxf1 {[%clk 0:00:41]}  Nd5 {[%clk 0:01:24]} 17. Kf2 {[%clk 0:00:38]}  Bd4+ {[%clk 0:01:23]} 18. Kf3 {[%clk 0:00:36]}  Bxc5 {[%clk 0:01:23]} 19. Ne4 {[%clk 0:00:37]}  Be7 {[%clk 0:01:23]} 20. b3 {[%clk 0:00:35]}  f5 {[%clk 0:01:16]} 21. Nf2 {[%clk 0:00:28]}  Bf6 {[%clk 0:01:15]} 22. Ba3+ {[%clk 0:00:28]}  Kg7 {[%clk 0:01:14]} 23. Rac1 {[%clk 0:00:26]}  Rhe8 {[%clk 0:01:09]} 24. Rhe1 {[%clk 0:00:24]}  Bc3 {[%clk 0:01:04]} 25. Rxe8 {[%clk 0:00:22]}  Rxe8 {[%clk 0:01:04]} 26. g3 {[%clk 0:00:20]}  Re3+ {[%clk 0:01:01]} 27. Kg2 {[%clk 0:00:20]}  Re2 {[%clk 0:01:01]} 28. Bc5 {[%clk 0:00:17]}  Kf7 {[%clk 0:00:46]} 29. a4 {[%clk 0:00:16]}  a5 {[%clk 0:00:45]} 30. Kf3 {[%clk 0:00:17]}  Rb2 {[%clk 0:00:44]} 31. g4 {[%clk 0:00:07]}  Rxb3 {[%clk 0:00:42]} 32. Kg2 {[%clk 0:00:07]}  Nxf4+ {[%clk 0:00:36]} 33. Kf1 {[%clk 0:00:05]}  fxg4 {[%clk 0:00:28]} 34. Nxg4 {[%clk 0:00:06]}  Nd3 {[%clk 0:00:29]} 35. Rc2 {[%clk 0:00:04]}  Nxc5 {[%clk 0:00:28]} 0-1


[Site "https://www.chess.com"]

[Event "Titled Tuesday Blitz March 07 Late 2023"]
[White "Wartiovaara, Oliver"]
[Black "Needleman, Alejandro"]
[WhiteFideId "513024"]
[BlackFideId "100730"]
[WhiteElo "2214"]
[BlackElo "2230"]
[Result "0-1"]
[Round "02"]
[TimeControl "180+2"]
[Date "2023.03.07"]
[WhiteClock "0:00:09"]
[BlackClock "0:00:22"]

1. d4 {[%clk 0:03:00]}  Nf6 {[%clk 0:02:58]} 2. c4 {[%clk 0:02:59]}  c5 {[%clk 0:02:58]} 3. d5 {[%clk 0:02:59]}  b5 {[%clk 0:02:59]} 4. cxb5 {[%clk 0:03:00]}  a6 {[%clk 0:02:59]} 5. b6 {[%clk 0:03:00]}  Qxb6 {[%clk 0:02:58]} 6. Nc3 {[%clk 0:03:01]}  g6 {[%clk 0:02:58]} 7. e4 {[%clk 0:03:01]}  d6 {[%clk 0:02:59]} 8. h3 {[%clk 0:03:01]}  Bg7 {[%clk 0:02:59]} 9. Nf3 {[%clk 0:03:02]}  O-O {[%clk 0:02:59]} 10. Bd3 {[%clk 0:03:02]}  Nbd7 {[%clk 0:02:59]} 11. O-O {[%clk 0:03:02]}  Ne8 {[%clk 0:02:58]} 12. Qe2 {[%clk 0:03:01]}  Nc7 {[%clk 0:02:58]} 13. Bf4 {[%clk 0:02:57]}  Nb5 {[%clk 0:02:55]} 14. Nxb5 {[%clk 0:02:35]}  axb5 {[%clk 0:02:56]} 15. Bxb5 {[%clk 0:02:36]}  Ba6 {[%clk 0:02:52]} 16. Bxa6 {[%clk 0:02:35]}  Qxa6 {[%clk 0:02:51]} 17. Qc2 {[%clk 0:02:23]}  Rfb8 {[%clk 0:02:50]} 18. e5 {[%clk 0:01:51]}  dxe5 {[%clk 0:02:41]} 19. Bd2 {[%clk 0:01:51]}  Qd6 {[%clk 0:01:13]} 20. Rfd1 {[%clk 0:00:57]}  Qxd5 {[%clk 0:01:13]} 21. b3 {[%clk 0:00:55]}  e4 {[%clk 0:01:11]} 22. Bc3 {[%clk 0:00:53]}  Qc6 {[%clk 0:01:06]} 23. Ng5 {[%clk 0:00:52]}  Bxc3 {[%clk 0:01:03]} 24. Qxc3 {[%clk 0:00:52]}  Nf6 {[%clk 0:01:03]} 25. Qc4 {[%clk 0:00:42]}  e6 {[%clk 0:00:59]} 26. Qc3 {[%clk 0:00:43]}  Nd5 {[%clk 0:00:55]} 27. Qe5 {[%clk 0:00:43]}  f6 {[%clk 0:00:51]} 28. Qxe6+ {[%clk 0:00:43]}  Qxe6 {[%clk 0:00:52]} 29. Nxe6 {[%clk 0:00:44]}  Nc3 {[%clk 0:00:51]} 30. Rd7 {[%clk 0:00:26]}  Rxa2 {[%clk 0:00:48]} 31. Rxa2 {[%clk 0:00:25]}  Nxa2 {[%clk 0:00:49]} 32. Nxc5 {[%clk 0:00:25]}  Rc8 {[%clk 0:00:45]} 33. Nxe4 {[%clk 0:00:24]}  Rc6 {[%clk 0:00:42]} 34. Rd6 {[%clk 0:00:19]}  Rc1+ {[%clk 0:00:39]} 35. Kh2 {[%clk 0:00:18]}  f5 {[%clk 0:00:40]} 36. Ng5 {[%clk 0:00:16]}  Rc2 {[%clk 0:00:37]} 37. Rd8+ {[%clk 0:00:16]}  Kg7 {[%clk 0:00:36]} 38. Rd7+ {[%clk 0:00:16]}  Kf6 {[%clk 0:00:36]} 39. Nxh7+ {[%clk 0:00:16]}  Ke6 {[%clk 0:00:36]} 40. Nf8+ {[%clk 0:00:15]}  Kf6 {[%clk 0:00:36]} 41. f4 {[%clk 0:00:16]}  Nc1 {[%clk 0:00:35]} 42. Nh7+ {[%clk 0:00:14]}  Ke6 {[%clk 0:00:34]} 43. Rb7 {[%clk 0:00:15]}  Nd3 {[%clk 0:00:29]} 44. Ng5+ {[%clk 0:00:16]}  Kd5 {[%clk 0:00:28]} 45. Kg3 {[%clk 0:00:16]}  Ne1 {[%clk 0:00:28]} 46. Rd7+ {[%clk 0:00:15]}  Kc6 {[%clk 0:00:27]} 47. Rd1 {[%clk 0:00:12]}  Rxg2+ {[%clk 0:00:25]} 48. Kh4 {[%clk 0:00:13]}  Re2 {[%clk 0:00:23]} 49. Rc1+ {[%clk 0:00:10]}  Kb5 {[%clk 0:00:23]} 50. Rc7 {[%clk 0:00:10]}  Re3 {[%clk 0:00:23]} 51. Rg7 {[%clk 0:00:09]}  Ng2# {[%clk 0:00:22]} 0-1


[Site "https://www.chess.com"]

[Event "Titled Tuesday Blitz March 07 Late 2023"]
[White "Mbonu, David"]
[Black "Ferreira, Vitor Hugo Vieira"]
[WhiteFideId "30927420"]
[BlackFideId "2119765"]
[WhiteElo "2315"]
[BlackElo "2146"]
[Result "1-0"]
[Round "02"]
[TimeControl "180+2"]
[Date "2023.03.07"]
[WhiteClock "0:02:24"]
[BlackClock "0:01:15"]

1. e4 {[%clk 0:03:00]}  c5 {[%clk 0:02:59]} 2. Nf3 {[%clk 0:03:01]}  d6 {[%clk 0:02:59]} 3. d4 {[%clk 0:03:01]}  cxd4 {[%clk 0:02:58]} 4. Nxd4 {[%clk 0:03:02]}  Nf6 {[%clk 0:02:59]} 5. Nc3 {[%clk 0:03:03]}  a6 {[%clk 0:02:59]} 6. Bc4 {[%clk 0:03:03]}  e6 {[%clk 0:02:58]} 7. Bb3 {[%clk 0:03:04]}  b5 {[%clk 0:02:57]} 8. O-O {[%clk 0:03:03]}  Nbd7 {[%clk 0:02:55]} 9. f4 {[%clk 0:03:02]}  Nc5 {[%clk 0:02:55]} 10. e5 {[%clk 0:03:00]}  Nxb3 {[%clk 0:02:50]} 11. axb3 {[%clk 0:02:59]}  b4 {[%clk 0:02:49]} 12. Ncb5 {[%clk 0:02:48]}  dxe5 {[%clk 0:02:41]} 13. fxe5 {[%clk 0:02:46]}  Bb7 {[%clk 0:02:10]} 14. exf6 {[%clk 0:02:44]}  axb5 {[%clk 0:02:08]} 15. Rxa8 {[%clk 0:02:33]}  Qxa8 {[%clk 0:02:08]} 16. Nxe6 {[%clk 0:02:30]}  Qa7+ {[%clk 0:01:42]} 17. Rf2 {[%clk 0:02:25]}  fxe6 {[%clk 0:01:14]} 18. f7+ {[%clk 0:02:24]}  Ke7 {[%clk 0:01:15]} 19. Bg5# {[%clk 0:02:24]} 1-0


[Site "https://www.chess.com"]

[Event "Titled Tuesday Blitz March 07 Late 2023"]
[White "Gireman, Ja"]
[Black "Eggleston, Thomas A"]
[WhiteFideId "5043794"]
[BlackFideId "412139"]
[WhiteElo "2153"]
[BlackElo "2155"]
[Result "1-0"]
[Round "02"]
[TimeControl "180+2"]
[Date "2023.03.07"]
[WhiteClock "0:00:31"]
[BlackClock "0:00:05"]

1. e4 {[%clk 0:03:00]}  e6 {[%clk 0:03:00]} 2. d4 {[%clk 0:03:00]}  d5 {[%clk 0:03:00]} 3. Nc3 {[%clk 0:03:00]}  Nf6 {[%clk 0:03:00]} 4. Bg5 {[%clk 0:03:00]}  dxe4 {[%clk 0:02:58]} 5. Nxe4 {[%clk 0:03:00]}  Be7 {[%clk 0:02:58]} 6. Bxf6 {[%clk 0:03:01]}  gxf6 {[%clk 0:02:59]} 7. Nf3 {[%clk 0:03:01]}  f5 {[%clk 0:03:00]} 8. Ng3 {[%clk 0:03:00]}  c5 {[%clk 0:03:00]} 9. Bb5+ {[%clk 0:02:55]}  Bd7 {[%clk 0:02:59]} 10. Bxd7+ {[%clk 0:02:54]}  Nxd7 {[%clk 0:02:59]} 11. d5 {[%clk 0:02:53]}  Qb6 {[%clk 0:02:29]} 12. O-O {[%clk 0:02:44]}  O-O-O {[%clk 0:02:28]} 13. dxe6 {[%clk 0:02:40]}  fxe6 {[%clk 0:02:27]} 14. Qe2 {[%clk 0:02:39]}  Rhe8 {[%clk 0:02:17]} 15. Rfe1 {[%clk 0:02:34]}  Bf6 {[%clk 0:02:17]} 16. c3 {[%clk 0:02:33]}  Nf8 {[%clk 0:01:57]} 17. a4 {[%clk 0:02:22]}  Ng6 {[%clk 0:01:54]} 18. a5 {[%clk 0:02:20]}  Qc6 {[%clk 0:01:51]} 19. a6 {[%clk 0:02:12]}  b6 {[%clk 0:01:50]} 20. Qc2 {[%clk 0:02:06]}  Kb8 {[%clk 0:01:25]} 21. Nh5 {[%clk 0:01:53]}  Bh8 {[%clk 0:01:18]} 22. Re2 {[%clk 0:01:47]}  Rg8 {[%clk 0:01:18]} 23. Kf1 {[%clk 0:01:16]}  Rdf8 {[%clk 0:01:07]} 24. Rae1 {[%clk 0:01:11]}  e5 {[%clk 0:01:07]} 25. Ng3 {[%clk 0:01:08]}  e4 {[%clk 0:01:06]} 26. Nxe4 {[%clk 0:01:06]}  fxe4 {[%clk 0:01:06]} 27. Rxe4 {[%clk 0:01:06]}  Re8 {[%clk 0:00:40]} 28. Rxe8+ {[%clk 0:00:56]}  Rxe8 {[%clk 0:00:39]} 29. Rd1 {[%clk 0:00:56]}  Qb5+ {[%clk 0:00:36]} 30. Kg1 {[%clk 0:00:56]}  Qxa6 {[%clk 0:00:36]} 31. h4 {[%clk 0:00:51]}  Nf4 {[%clk 0:00:31]} 32. Qf5 {[%clk 0:00:46]}  Ne2+ {[%clk 0:00:24]} 33. Kh2 {[%clk 0:00:46]}  Qb7 {[%clk 0:00:19]} 34. Rd7 {[%clk 0:00:46]}  Qc6 {[%clk 0:00:17]} 35. Rxh7 {[%clk 0:00:44]}  Rg8 {[%clk 0:00:07]} 36. g3 {[%clk 0:00:37]}  Bf6 {[%clk 0:00:06]} 37. Ne5 {[%clk 0:00:33]}  Bxe5 {[%clk 0:00:04]} 38. Qxe5+ {[%clk 0:00:33]}  Ka8 {[%clk 0:00:05]} 39. Qe7 {[%clk 0:00:31]} 1-0


[Site "https://www.chess.com"]

[Event "Titled Tuesday Blitz March 07 Late 2023"]
[White "TimGrutter03"]
[Black "Abrosimov, Vladimir"]
[BlackFideId "4166892"]
[WhiteElo "2478"]
[BlackElo "2336"]
[Result "1-0"]
[Round "02"]
[TimeControl "180+2"]
[Date "2023.03.07"]
[WhiteClock "0:01:07"]
[BlackClock "0:00:49"]

1. e4 {[%clk 0:03:00]}  c5 {[%clk 0:02:58]} 2. Nf3 {[%clk 0:03:00]}  d6 {[%clk 0:02:59]} 3. d4 {[%clk 0:03:00]}  cxd4 {[%clk 0:03:00]} 4. Nxd4 {[%clk 0:03:01]}  Nf6 {[%clk 0:02:59]} 5. Nc3 {[%clk 0:03:02]}  a6 {[%clk 0:03:00]} 6. g3 {[%clk 0:03:01]}  e5 {[%clk 0:02:59]} 7. Nb3 {[%clk 0:03:02]}  Be6 {[%clk 0:02:58]} 8. Bg2 {[%clk 0:03:02]}  Be7 {[%clk 0:02:56]} 9. a4 {[%clk 0:03:02]}  O-O {[%clk 0:02:55]} 10. O-O {[%clk 0:03:00]}  Nbd7 {[%clk 0:02:53]} 11. Re1 {[%clk 0:03:00]}  Rc8 {[%clk 0:02:52]} 12. Nd2 {[%clk 0:03:00]}  Qc7 {[%clk 0:02:49]} 13. Nf1 {[%clk 0:03:00]}  Nb6 {[%clk 0:02:43]} 14. Ne3 {[%clk 0:02:55]}  Rfd8 {[%clk 0:02:35]} 15. Ned5 {[%clk 0:02:40]}  Nbxd5 {[%clk 0:02:32]} 16. exd5 {[%clk 0:02:41]}  Bf5 {[%clk 0:02:24]} 17. a5 {[%clk 0:02:32]}  Nd7 {[%clk 0:02:18]} 18. Be3 {[%clk 0:02:25]}  h6 {[%clk 0:02:13]} 19. Qd2 {[%clk 0:02:22]}  Nc5 {[%clk 0:02:06]} 20. Rec1 {[%clk 0:02:15]}  Rf8 {[%clk 0:02:04]} 21. Bxc5 {[%clk 0:02:12]}  Qxc5 {[%clk 0:02:03]} 22. Na4 {[%clk 0:02:10]}  Qd4 {[%clk 0:01:50]} 23. Qe2 {[%clk 0:01:33]}  Bg5 {[%clk 0:01:41]} 24. c3 {[%clk 0:01:29]}  Qc4 {[%clk 0:01:34]} 25. Qxc4 {[%clk 0:01:27]}  Rxc4 {[%clk 0:01:33]} 26. Re1 {[%clk 0:01:23]}  Bd8 {[%clk 0:01:28]} 27. b4 {[%clk 0:01:15]}  Bd7 {[%clk 0:01:23]} 28. Bf1 {[%clk 0:01:16]}  Rc8 {[%clk 0:01:16]} 29. c4 {[%clk 0:01:16]}  f5 {[%clk 0:01:13]} 30. Nb6 {[%clk 0:01:14]}  Bxb6 {[%clk 0:01:12]} 31. axb6 {[%clk 0:01:15]}  f4 {[%clk 0:01:08]} 32. Rac1 {[%clk 0:01:13]}  fxg3 {[%clk 0:01:06]} 33. hxg3 {[%clk 0:01:12]}  Rf3 {[%clk 0:01:04]} 34. c5 {[%clk 0:01:12]}  Rb3 {[%clk 0:00:58]} 35. c6 {[%clk 0:01:08]}  bxc6 {[%clk 0:00:55]} 36. b7 {[%clk 0:01:09]}  Rb8 {[%clk 0:00:50]} 37. dxc6 {[%clk 0:01:09]}  Bxc6 {[%clk 0:00:49]} 38. Bc4+ {[%clk 0:01:07]} 1-0


[Site "https://www.chess.com"]

[Event "Titled Tuesday Blitz March 07 Late 2023"]
[White "Prieto Aranguren, Alain"]
[Black "Prydun, Andriy"]
[WhiteFideId "2268906"]
[BlackFideId "14145898"]
[WhiteElo "2209"]
[BlackElo "2164"]
[Result "0-1"]
[Round "02"]
[TimeControl "180+2"]
[Date "2023.03.07"]
[WhiteClock "0:00:11"]
[BlackClock "0:00:08"]

1. d4 {[%clk 0:03:00]}  f6 {[%clk 0:02:49]} 2. e4 {[%clk 0:02:59]}  g6 {[%clk 0:02:49]} 3. h4 {[%clk 0:02:58]}  Nh6 {[%clk 0:02:43]} 4. h5 {[%clk 0:02:58]}  g5 {[%clk 0:02:43]} 5. Nc3 {[%clk 0:02:53]}  Nf7 {[%clk 0:02:42]} 6. Be3 {[%clk 0:02:51]}  Bg7 {[%clk 0:02:36]} 7. Qd2 {[%clk 0:02:50]}  e6 {[%clk 0:02:35]} 8. f4 {[%clk 0:02:47]}  Nc6 {[%clk 0:02:32]} 9. Nf3 {[%clk 0:02:39]}  g4 {[%clk 0:02:15]} 10. Nh2 {[%clk 0:02:30]}  f5 {[%clk 0:02:12]} 11. e5 {[%clk 0:02:28]}  d5 {[%clk 0:02:11]} 12. g3 {[%clk 0:02:15]}  Ne7 {[%clk 0:01:53]} 13. Bg2 {[%clk 0:02:09]}  b6 {[%clk 0:01:49]} 14. a4 {[%clk 0:02:07]}  a5 {[%clk 0:01:49]} 15. Nb5 {[%clk 0:02:04]}  Ba6 {[%clk 0:01:48]} 16. Qc3 {[%clk 0:02:02]}  c6 {[%clk 0:01:47]} 17. Na3 {[%clk 0:01:53]}  Qd7 {[%clk 0:01:44]} 18. Nf1 {[%clk 0:01:50]}  Ng8 {[%clk 0:01:39]} 19. Nd2 {[%clk 0:01:46]}  Bf8 {[%clk 0:01:38]} 20. Qb3 {[%clk 0:01:43]}  Bb4 {[%clk 0:01:35]} 21. c3 {[%clk 0:01:42]}  Bf8 {[%clk 0:01:28]} 22. Qxb6 {[%clk 0:01:39]}  Bd3 {[%clk 0:01:26]} 23. Bf1 {[%clk 0:01:33]}  Be4 {[%clk 0:01:25]} 24. Nxe4 {[%clk 0:01:32]}  fxe4 {[%clk 0:01:25]} 25. Nb5 {[%clk 0:01:27]}  Rc8 {[%clk 0:01:01]} 26. Qxa5 {[%clk 0:01:11]}  Ngh6 {[%clk 0:00:58]} 27. Qb6 {[%clk 0:00:56]}  Nf5 {[%clk 0:00:49]} 28. Kf2 {[%clk 0:00:56]}  Nxe3 {[%clk 0:00:45]} 29. Kxe3 {[%clk 0:00:55]}  Nh6 {[%clk 0:00:46]} 30. a5 {[%clk 0:00:54]}  Nf5+ {[%clk 0:00:47]} 31. Kf2 {[%clk 0:00:54]}  e3+ {[%clk 0:00:47]} 32. Kg2 {[%clk 0:00:51]}  Bh6 {[%clk 0:00:29]} 33. a6 {[%clk 0:00:50]}  O-O {[%clk 0:00:29]} 34. Qb7 {[%clk 0:00:40]}  Qd8 {[%clk 0:00:22]} 35. a7 {[%clk 0:00:28]}  cxb5 {[%clk 0:00:20]} 36. Bxb5 {[%clk 0:00:24]}  Ra8 {[%clk 0:00:18]} 37. Bc6 {[%clk 0:00:20]}  Nxg3 {[%clk 0:00:12]} 38. Kxg3 {[%clk 0:00:18]}  Bxf4+ {[%clk 0:00:11]} 39. Kg2 {[%clk 0:00:18]}  Qg5 {[%clk 0:00:08]} 40. Qxa8 {[%clk 0:00:16]}  Rxa8 {[%clk 0:00:08]} 41. Bxa8 {[%clk 0:00:16]}  Qf5 {[%clk 0:00:09]} 42. Bc6 {[%clk 0:00:15]}  Qc2+ {[%clk 0:00:08]} 43. Kg1 {[%clk 0:00:11]}  Qf2# {[%clk 0:00:08]} 0-1


[Site "https://www.chess.com"]

[Event "Titled Tuesday Blitz March 07 Late 2023"]
[White "Dudzinski, Pawel"]
[Black "Schut, Han"]
[WhiteFideId "1117890"]
[BlackFideId "1005561"]
[WhiteElo "2099"]
[BlackElo "2024"]
[Result "1-0"]
[Round "02"]
[TimeControl "180+2"]
[Date "2023.03.07"]
[WhiteClock "0:01:25"]
[BlackClock "0:00:49"]

1. e4 {[%clk 0:03:00]}  c5 {[%clk 0:02:59]} 2. Nc3 {[%clk 0:02:59]}  Nc6 {[%clk 0:02:59]} 3. g3 {[%clk 0:03:00]}  g6 {[%clk 0:03:00]} 4. Bg2 {[%clk 0:03:00]}  Bg7 {[%clk 0:03:00]} 5. d3 {[%clk 0:03:01]}  e6 {[%clk 0:03:01]} 6. Be3 {[%clk 0:03:02]}  d6 {[%clk 0:03:01]} 7. Qd2 {[%clk 0:03:02]}  Rb8 {[%clk 0:03:01]} 8. f4 {[%clk 0:03:01]}  b5 {[%clk 0:03:01]} 9. Nf3 {[%clk 0:02:58]}  Nge7 {[%clk 0:03:00]} 10. d4 {[%clk 0:02:58]}  b4 {[%clk 0:02:47]} 11. Ne2 {[%clk 0:02:57]}  c4 {[%clk 0:02:48]} 12. c3 {[%clk 0:02:56]}  d5 {[%clk 0:02:46]} 13. Ne5 {[%clk 0:02:51]}  O-O {[%clk 0:02:34]} 14. Nxc6 {[%clk 0:02:44]}  Nxc6 {[%clk 0:02:35]} 15. exd5 {[%clk 0:02:44]}  exd5 {[%clk 0:02:36]} 16. O-O {[%clk 0:02:43]}  Bf5 {[%clk 0:02:32]} 17. Rfe1 {[%clk 0:02:40]}  Re8 {[%clk 0:02:24]} 18. Bf2 {[%clk 0:02:39]}  a5 {[%clk 0:02:19]} 19. h3 {[%clk 0:02:38]}  h5 {[%clk 0:02:16]} 20. Kh2 {[%clk 0:02:38]}  Qd7 {[%clk 0:02:14]} 21. Ng1 {[%clk 0:02:38]}  a4 {[%clk 0:02:11]} 22. Nf3 {[%clk 0:02:29]}  a3 {[%clk 0:02:07]} 23. Rxe8+ {[%clk 0:02:24]}  Rxe8 {[%clk 0:02:02]} 24. cxb4 {[%clk 0:02:23]}  axb2 {[%clk 0:01:53]} 25. Qxb2 {[%clk 0:02:24]}  Be4 {[%clk 0:01:50]} 26. Ne5 {[%clk 0:02:23]}  Nxe5 {[%clk 0:01:40]} 27. dxe5 {[%clk 0:02:23]}  Bxg2 {[%clk 0:01:37]} 28. Kxg2 {[%clk 0:02:24]}  Qf5 {[%clk 0:01:35]} 29. Bd4 {[%clk 0:02:19]}  h4 {[%clk 0:01:35]} 30. a4 {[%clk 0:02:02]}  hxg3 {[%clk 0:01:34]} 31. Kxg3 {[%clk 0:01:51]}  g5 {[%clk 0:01:34]} 32. Qf2 {[%clk 0:01:46]}  Qd3+ {[%clk 0:01:06]} 33. Kh2 {[%clk 0:01:39]}  gxf4 {[%clk 0:01:01]} 34. Qxf4 {[%clk 0:01:39]}  Qxd4 {[%clk 0:00:50]} 35. Qxd4 {[%clk 0:01:36]}  Bxe5+ {[%clk 0:00:51]} 36. Qxe5 {[%clk 0:01:32]}  Rxe5 {[%clk 0:00:52]} 37. a5 {[%clk 0:01:30]}  c3 {[%clk 0:00:51]} 38. a6 {[%clk 0:01:29]}  d4 {[%clk 0:00:51]} 39. a7 {[%clk 0:01:28]}  Re8 {[%clk 0:00:51]} 40. a8=Q {[%clk 0:01:24]}  Rxa8 {[%clk 0:00:49]} 41. Rxa8+ {[%clk 0:01:25]}  Kg7 {[%clk 0:00:49]} 42. Rc8 {[%clk 0:01:25]}  c2 {[%clk 0:00:49]} 43. Rxc2 {[%clk 0:01:25]} 1-0


[Site "https://www.chess.com"]

[Event "Titled Tuesday Blitz March 07 Late 2023"]
[White "Good, Daniel"]
[Black "Mortazavi, Ali"]
[WhiteFideId "1302388"]
[BlackFideId "401323"]
[WhiteElo "2256"]
[BlackElo "2339"]
[Result "1-0"]
[Round "02"]
[TimeControl "180+2"]
[Date "2023.03.07"]
[WhiteClock "0:00:05"]
[BlackClock "0:00:03"]

1. e4 {[%clk 0:03:00]}  c6 {[%clk 0:03:00]} 2. d4 {[%clk 0:02:56]}  d5 {[%clk 0:03:00]} 3. f3 {[%clk 0:02:56]}  Qb6 {[%clk 0:02:59]} 4. Nc3 {[%clk 0:02:18]}  e6 {[%clk 0:02:56]} 5. a3 {[%clk 0:02:09]}  Nd7 {[%clk 0:02:56]} 6. Be3 {[%clk 0:02:09]}  Ngf6 {[%clk 0:02:56]} 7. Bd3 {[%clk 0:02:07]}  dxe4 {[%clk 0:02:46]} 8. fxe4 {[%clk 0:02:07]}  e5 {[%clk 0:02:46]} 9. Nf3 {[%clk 0:01:56]}  Bd6 {[%clk 0:02:39]} 10. O-O {[%clk 0:01:54]}  O-O {[%clk 0:02:38]} 11. h3 {[%clk 0:01:14]}  Qc7 {[%clk 0:02:38]} 12. Nh4 {[%clk 0:01:12]}  exd4 {[%clk 0:02:36]} 13. Bxd4 {[%clk 0:01:11]}  Be5 {[%clk 0:02:27]} 14. Be3 {[%clk 0:01:02]}  g6 {[%clk 0:02:24]} 15. Qf3 {[%clk 0:00:51]}  Bg3 {[%clk 0:01:34]} 16. Bg5 {[%clk 0:00:43]}  Nh5 {[%clk 0:01:26]} 17. Nf5 {[%clk 0:00:28]}  Ne5 {[%clk 0:01:26]} 18. Ne7+ {[%clk 0:00:16]}  Qxe7 {[%clk 0:01:18]} 19. Bxe7 {[%clk 0:00:17]}  Nxf3+ {[%clk 0:01:17]} 20. Rxf3 {[%clk 0:00:17]}  Re8 {[%clk 0:01:17]} 21. Bg5 {[%clk 0:00:13]}  Be6 {[%clk 0:01:15]} 22. Raf1 {[%clk 0:00:13]}  Be5 {[%clk 0:00:58]} 23. Ne2 {[%clk 0:00:12]}  Bxb2 {[%clk 0:00:43]} 24. g4 {[%clk 0:00:13]}  Ng7 {[%clk 0:00:42]} 25. Nf4 {[%clk 0:00:13]}  Bxa3 {[%clk 0:00:38]} 26. Bh6 {[%clk 0:00:11]}  Bc5+ {[%clk 0:00:36]} 27. Kg2 {[%clk 0:00:11]}  Re7 {[%clk 0:00:34]} 28. Nxe6 {[%clk 0:00:07]}  Nxe6 {[%clk 0:00:34]} 29. Bc4 {[%clk 0:00:08]}  Rd7 {[%clk 0:00:09]} 30. Rxf7 {[%clk 0:00:06]}  Rxf7 {[%clk 0:00:07]} 31. Bxe6 {[%clk 0:00:07]}  Kh8 {[%clk 0:00:06]} 32. Rxf7 {[%clk 0:00:07]}  Bd4 {[%clk 0:00:07]} 33. Rxb7 {[%clk 0:00:07]}  c5 {[%clk 0:00:06]} 34. Rd7 {[%clk 0:00:06]}  Re8 {[%clk 0:00:05]} 35. Bd5 {[%clk 0:00:07]}  a5 {[%clk 0:00:04]} 36. Ra7 {[%clk 0:00:07]}  Bc3 {[%clk 0:00:03]} 37. Be3 {[%clk 0:00:05]} 1-0


[Site "https://www.chess.com"]

[Event "Titled Tuesday Blitz March 07 Late 2023"]
[White "Girsh, Daniel"]
[Black "Kohler, Aran"]
[WhiteFideId "30949190"]
[BlackFideId "1002856"]
[WhiteElo "2075"]
[BlackElo "2250"]
[Result "1-0"]
[Round "02"]
[TimeControl "180+2"]
[Date "2023.03.07"]
[WhiteClock "0:00:37"]
[BlackClock "0:00:01"]

1. e4 {[%clk 0:02:53]}  c6 {[%clk 0:02:59]} 2. d4 {[%clk 0:02:51]}  d5 {[%clk 0:02:59]} 3. exd5 {[%clk 0:02:49]}  cxd5 {[%clk 0:02:59]} 4. Bd3 {[%clk 0:02:49]}  Nc6 {[%clk 0:02:59]} 5. c3 {[%clk 0:02:49]}  Nf6 {[%clk 0:02:58]} 6. Bf4 {[%clk 0:02:48]}  g6 {[%clk 0:02:53]} 7. Nd2 {[%clk 0:02:46]}  Bg7 {[%clk 0:02:53]} 8. Ngf3 {[%clk 0:02:45]}  O-O {[%clk 0:02:48]} 9. O-O {[%clk 0:02:43]}  Bg4 {[%clk 0:02:37]} 10. h3 {[%clk 0:02:42]}  Nh5 {[%clk 0:02:21]} 11. Bh2 {[%clk 0:02:39]}  Bxf3 {[%clk 0:02:18]} 12. Nxf3 {[%clk 0:02:38]}  e6 {[%clk 0:02:04]} 13. Re1 {[%clk 0:02:35]}  Qb6 {[%clk 0:02:03]} 14. Qe2 {[%clk 0:02:34]}  Nf6 {[%clk 0:01:52]} 15. Rad1 {[%clk 0:02:22]}  Rad8 {[%clk 0:01:52]} 16. g4 {[%clk 0:02:13]}  a5 {[%clk 0:01:50]} 17. Kg2 {[%clk 0:02:09]}  a4 {[%clk 0:01:47]} 18. a3 {[%clk 0:02:07]}  Nd7 {[%clk 0:01:42]} 19. h4 {[%clk 0:02:01]}  Rfe8 {[%clk 0:01:40]} 20. h5 {[%clk 0:01:58]}  Nf8 {[%clk 0:01:37]} 21. Qd2 {[%clk 0:01:54]}  Qa5 {[%clk 0:01:34]} 22. Ng5 {[%clk 0:01:48]}  f5 {[%clk 0:01:19]} 23. hxg6 {[%clk 0:01:45]}  hxg6 {[%clk 0:01:19]} 24. Bg3 {[%clk 0:01:29]}  Rd7 {[%clk 0:01:00]} 25. Rh1 {[%clk 0:01:27]}  Bf6 {[%clk 0:00:51]} 26. Nf3 {[%clk 0:01:22]}  Rg7 {[%clk 0:00:42]} 27. g5 {[%clk 0:01:19]}  Bd8 {[%clk 0:00:39]} 28. Ne5 {[%clk 0:01:18]}  Bc7 {[%clk 0:00:28]} 29. Rh6 {[%clk 0:01:14]}  Nxe5 {[%clk 0:00:26]} 30. dxe5 {[%clk 0:01:08]}  Kf7 {[%clk 0:00:25]} 31. Qe3 {[%clk 0:01:01]}  Bb6 {[%clk 0:00:25]} 32. Qf4 {[%clk 0:00:57]}  Qc5 {[%clk 0:00:24]} 33. Qxa4 {[%clk 0:00:48]}  Rd8 {[%clk 0:00:10]} 34. Qb4 {[%clk 0:00:47]}  Qxb4 {[%clk 0:00:08]} 35. axb4 {[%clk 0:00:47]}  d4 {[%clk 0:00:08]} 36. c4 {[%clk 0:00:47]}  Bc7 {[%clk 0:00:08]} 37. f4 {[%clk 0:00:46]}  Nd7 {[%clk 0:00:06]} 38. Ra1 {[%clk 0:00:46]}  Nb6 {[%clk 0:00:06]} 39. Ra7 {[%clk 0:00:42]}  Rb8 {[%clk 0:00:05]} 40. Bf2 {[%clk 0:00:42]}  Nc8 {[%clk 0:00:05]} 41. Ra1 {[%clk 0:00:38]}  Bb6 {[%clk 0:00:01]} 42. c5 {[%clk 0:00:39]}  Bc7 {[%clk 0:00:01]} 43. Bxd4 {[%clk 0:00:40]}  b6 {[%clk 0:00:01]} 44. Bc4 {[%clk 0:00:37]} 1-0


[Site "https://www.chess.com"]